Cogmind - Beta 15 @@@ ROGUE MODE // 2025.07.28 @ 16:54:58 Player: shapeshifter Result: Destroyed by Y-45 Defender with Heavy Assault Rifle Performance ------------- Evolutions (1) 500 Regions Visited (5) 1000 Robots Destroyed (23) 115 Value Destroyed (656) 656 Prototype IDs (4) 80 Alien Tech Used (0) 0 Bonus (0) 0 TOTAL SCORE: 2351 Bonus ------- None Cogmind --------- Core Integrity 0/400 Matter 285/300 Energy 279/280 System Corruption 2% Temperature Cool (15) Movement Treading (160) Location -9/Recycling Parts ------- > --- POWER (1) -------- Heavy Ion Engine > --- PROPULSION (2) --- Light Treads Light Treads > --- UTILITY (4) ------ Heat Sink (fused) Large Storage Unit Utility Shielding > --- WEAPON (2) ------- Advanced Beam Cannon Improved Assault Rifle > --- INVENTORY (15) --- VTOL Module VTOL Module VTOL Module Improved Flight Unit Improved Flight Unit Improved Flight Unit Improved Flight Unit Flail Peak State ------------ > --- POWER ------------ Heavy Ion Engine > --- PROPULSION ------- Light Treads Light Treads > --- UTILITY ---------- Heat Sink Large Storage Unit Utility Shielding > --- WEAPON ----------- Advanced Beam Cannon Improved Assault Rifle > --- INVENTORY -------- VTOL Module VTOL Module VTOL Module Improved Flight Unit Improved Flight Unit Improved Flight Unit Improved Flight Unit Flail [Rating: 16] Favorites ----------- Power Light Ion Engine Engine Light Ion Engine Propulsion Light Treads Treads Light Treads Wheel Wheel Flight Unit Improved Flight Unit Utility Large Storage Unit Device Seismic Detector Storage Large Storage Unit Protection Utility Shielding Weapon Light Assault Rifle Energy Gun Beam Rifle Energy Cannon Advanced Beam Cannon Ballistic Gun Light Assault Rifle Launcher Rocket Launcher Build | -11 -10 -10 -9 -9 -9 ------- Run | Yrd Mat Min Mat Sto Rec Slots Evolved 2 | . . . 2 . . Power . | . . . . . . Propulsion . | . . . . . . Utility 2 | . . . 2 . . Weapon . | . . . . . . Parts Attached 25 | 7 1 2 . 15 . Power 3 | 1 . 1 . 1 . Engine 3 | 1 . 1 . 1 . Core . | . . . . . . Reactor . | . . . . . . Propulsion 8 | 2 . . . 6 . Treads 4 | 2 . . . 2 . Leg . | . . . . . . Wheel 2 | . . . . 2 . Hover . | . . . . . . Flight 2 | . . . . 2 . Utility 5 | 2 1 . . 2 . Device 2 | 1 . . . 1 . Storage 2 | 1 1 . . . . Processor . | . . . . . . Hackware . | . . . . . . Protection 1 | . . . . 1 . Artifact . | . . . . . . Weapon 9 | 2 . 1 . 6 . Energy Gun 3 | . . . . 3 . Energy Cannon 1 | . . . . 1 . Ballistic Gun 4 | 2 . 1 . 1 . Ballistic Cannon . | . . . . . . Launcher 1 | . . . . 1 . Special Weapon . | . . . . . . Impact Weapon . | . . . . . . Slashing Weapon . | . . . . . . Piercing Weapon . | . . . . . . Special Melee Weapon . | . . . . . . Unidentified Prototypes 4 | . . . . 4 . Parts Lost 12 | . . 2 . 10 . Power 2 | . . 1 . 1 . Propulsion 4 | . . . . 4 . Utility 1 | . . . . 1 . Weapon 5 | . . 1 . 4 . Highest Loss Streak 5 | . . 1 . 5 . To Critical Strikes . | . . . . . . Average Backups 7 | 3 7 9 9 8 6 Power . | . 1 . . . . Propulsion 2 | 1 2 2 2 3 5 Utility 1 | . . 2 2 . . Weapon 3 | . 3 4 5 4 1 Tool/Special . | . . . . . . Unused Backups 7 | . . . . 1 6 Power . | . . . . . . Propulsion 5 | . . . . . 5 Utility 1 | . . . . 1 . Weapon 1 | . . . . . 1 Tool/Special . | . . . . . . Average Slot Usage (%) 90 | . 98 99 66 74 88 Engine 12 | . 14 13 11 9 11 Treads 23 | . 27 28 22 14 22 Device 12 | . 14 14 11 10 11 Storage 12 | . 14 14 11 11 11 Protection 2 | . . . . 5 11 Energy Gun 3 | . . . . 15 . Energy Cannon 2 | . . . . 1 11 Ballistic Gun 18 | . 27 27 11 2 11 Peak Build Rating 16 | 7 8 8 7 15 16 Average Rating 9 | 5 7 7 7 11 15 On Entrance 7 | . 7 8 7 7 15 Naked Turns . | . . . . . . Heaviest Build 37 | 12 27 27 25 37 37 Greatest Support 40 | 40 40 40 40 40 40 Greatest Overweight (x) 10 | . 3 . . 10 . Average Overweight (x) . | . . . . . . Largest Inventory Capacity 15 | 8 15 15 15 15 15 Average Capacity 13 | 7 9 15 15 15 15 Most Carried 14 | 6 9 11 9 14 8 Average Carried 8 | 3 7 9 9 8 6 Final Capacity 15 | 8 15 15 15 15 15 Final Carried 9 | 4 9 9 9 5 8 Class Distribution -------------------- 100% | Mutant Dominant Class ---------------- Mutant | -10/Materials Mutant | -10/Mines Mutant | -9/Materials Mutant | -9/Storage Mutant | -9/Recycling Resources | -11 -10 -10 -9 -9 -9 ----------- Run | Yrd Mat Min Mat Sto Rec Matter Collected 720 | 302 . 139 . 273 6 Remotely . | . . . . . . Salvage Created 793 | 141 89 101 . 462 . Parts 45 | 13 4 8 . 20 . Haulers Intercepted . | . . . . . . Recyclers Shooed . | . . . . . . Parts Field Recycled . | . . . . . . Retrieved Matter . | . . . . . . Parts Self-Destructed . | . . . . . . Prevented . | . . . . . . Kills | -11 -10 -10 -9 -9 -9 ------- Run | Yrd Mat Min Mat Sto Rec Combat Hostiles Destroyed 17 | . 2 4 . 11 . Guns 15 | . 2 4 . 9 . AOE 1 | . . . . 1 . Classes Destroyed 7 | 2 1 1 . 3 . Worker 1 | . . . . 1 . Tunneler 3 | 3 . . . . . Recycler 1 | 1 . . . . . Watcher 1 | . . . . 1 . Swarmer 2 | . . 2 . . . Grunt 12 | . 2 2 . 8 . Sentry 3 | . . . . 3 . Best Kill Streak 5 | 3 2 2 . 5 . Combat Bots Only 5 | . 2 2 . 5 . Max Kills in Single Turn 1 | 1 1 1 . 1 . Gunslinging . | . . . . . . Exploded 1 | . . . . 1 . Melee . | . . . . . . Uniques/NPCs Destroyed . | . . . . . . Combat | -11 -10 -10 -9 -9 -9 -------- Run | Yrd Mat Min Mat Sto Rec Hostile Shots Fired 170 | . 14 28 . 118 10 Missed 37 | . 5 5 . 25 2 Hits 133 | . 9 23 . 93 8 Melee 1 | . . 1 . . . Projectile 132 | . 9 22 . 93 8 Critical Strikes 5 | . 1 1 . 3 . Actively Blocked 2 | . . . . 2 . Damage Taken 1723 | . 116 240 . 1247 120 Core 437 | . 17 18 . 369 33 Absorbed by Shields . | . . . . . . Redirected to Shielding 37 | . . . . 32 5 Core Remaining (%) 93 | 100 . 86 . . . Volleys Fired 78 | 8 8 14 . 43 5 Largest 2 | 2 2 2 . 2 2 Hottest 112 | 40 40 40 . 112 91 Shots Fired 138 | 16 16 28 . 68 10 Gun 126 | 16 16 28 . 61 5 Cannon 5 | . . . . . 5 Launcher 7 | . . . . 7 . Special . | . . . . . . Kinetic 72 | 16 16 28 . 7 5 Thermal 59 | . . . . 54 5 Explosive 7 | . . . . 7 . Electromagnetic . | . . . . . . Robot Hit Streak 14 | 6 10 5 . 14 5 Robot Miss Streak 6 | 2 1 4 . 6 1 Penetration Max . | . . . . . . Secondary Targets 6 | . 1 2 . 3 . Max Gunslinging Chain 1 | . 1 1 . 1 . Shots Hit Robots 89 | 9 13 15 . 44 8 Core Hits 44 | 7 4 7 . 26 . Critical Kills 1 | . 1 . . . . Critical Parts Destroyed . | . . . . . . Critical Strikes 8 | . 1 . . 7 . Burn 7 | . . . . 7 . Destroy 1 | . 1 . . . . Melee Attacks . | . . . . . . Impact . | . . . . . . Slashing . | . . . . . . Piercing . | . . . . . . Sneak Attacks . | . . . . . . Combat Hostiles . | . . . . . . Follow-up Attacks . | . . . . . . Damage Inflicted 1679 | 87 142 189 . 1128 133 Guns 1029 | 87 142 189 . 538 73 Cannons 60 | . . . . . 60 Explosions 590 | . . . . 590 . Melee . | . . . . . . Ramming . | . . . . . . Kinetic 551 | 87 142 189 . 60 73 Thermal 538 | . . . . 478 60 Explosive 590 | . . . . 590 . Electromagnetic . | . . . . . . Impact . | . . . . . . Slashing . | . . . . . . Piercing . | . . . . . . Highest Corruption 3 | . . 3 . 2 2 Average Corruption 2 | . . 3 . 2 2 Corruption Purged . | . . . . . . Corruption Blocked . | . . . . . . Effects 5 | . . . . 4 1 Message Errors 1 | . . . . 1 . Matter Fused 3 | . . . . 2 1 Parts Fused 1 | . . . . 1 . Overload Shots . | . . . . . . Overflow Damage 17 | . . . . 17 . Projectiles . | . . . . . . Explosions 17 | . . . . 17 . Melee . | . . . . . . Knockbacks . | . . . . . . Impact . | . . . . . . Kinetic . | . . . . . . Secondary . | . . . . . . Self-Inflicted Damage 22 | . . . . 22 . Shots 1 | . . . . 1 . Rammed . | . . . . . . Targets Rammed . | . . . . . . Kicked . | . . . . . . Crushed . | . . . . . . Highest Temperature 336 | . 28 28 . 336 10 Average Temperature 93 | . 18 11 . 111 6 Received Heat Transfer 699 | . 84 78 . 510 27 Siege Activations . | . . . . . . Martial Activations . | . . . . . . Shielding Activations . | . . . . . . Robots Disrupted . | . . . . . . Combat Hostiles . | . . . . . . Robots Corrupted . | . . . . . . Combat Hostiles . | . . . . . . Parts Fried . | . . . . . . Impact Corruptions . | . . . . . . Robots Melted 1 | . . . . 1 . Combat Hostiles 1 | . . . . 1 . Parts Melted 7 | . . . . 7 . Heat Transferred 1887 | . . . . 1776 111 Parts Sabotaged . | . . . . . . Parts Stolen . | . . . . . . Parts Stripped . | . . . . . . Power Chain Reactions . | . . . . . . Alert | -11 -10 -10 -9 -9 -9 ------- Run | Yrd Mat Min Mat Sto Rec Maximum Alert Level . | . . . . . . Low Security (%) 100 | 100 100 100 100 100 100 Level 1 . | . . . . . . Level 2 . | . . . . . . Level 3 . | . . . . . . Level 4 . | . . . . . . Level 5 . | . . . . . . High Security . | . . . . . . Max Security . | . . . . . . Peak Influence 119 | 10 50 42 . 119 36 Initial 36 | . . . . . 36 Average 16 | 1 11 7 . 52 7 Influence Increases 539 | 20 63 100 . 339 17 Destroy 0b10 Robot/C 340 | . 40 80 . 220 . Destroy 0b10 Robot/NC 30 | 20 . . . 10 . Destroy Leader 82 | . 10 20 . 52 . Successful Hack 30 | . 13 . . . 17 Disable Machine 15 | . . . . 15 . Destroy Structure 42 | . . . . 42 . Influence Decreases 539 | 20 63 100 . 246 110 Entered New Map 57 | . . . . . 57 Time Decay 372 | 20 63 90 . 146 53 Lost Part 110 | . . 10 . 100 . Squads Dispatched 1 | . . . . 1 . Investigation . | . . . . . . Extermination . | . . . . . . Reinforcement 1 | . . . . 1 . Assault . | . . . . . . Garrison . | . . . . . . Intercept . | . . . . . . Searches Triggered . | . . . . . . Construction Impeded . | . . . . . . Haulers Reinforced . | . . . . . . Active Scanning Responses . | . . . . . . Cargo Convoy Interrupts . | . . . . . . Stealth | -11 -10 -10 -9 -9 -9 --------- Run | Yrd Mat Min Mat Sto Rec Distress Signals 1 | . . . . 1 . Communications Jammed . | . . . . . . Distress Signals . | . . . . . . Times Spotted 29 | . 2 12 . 14 1 Peak Tracking Total 19 | . 2 19 . 5 2 Tactical Retreats . | . . . . . . Traps | -11 -10 -10 -9 -9 -9 ------- Run | Yrd Mat Min Mat Sto Rec Traps Triggered 2 | . 1 . . 1 . Indirectly . | . . . . . . Trap Hack Attempts . | . . . . . . Triggered . | . . . . . . Disarmed . | . . . . . . Reprogrammed . | . . . . . . Reused . | . . . . . . Traps Extracted . | . . . . . . Installed . | . . . . . . Triggered . | . . . . . . Machines | -11 -10 -10 -9 -9 -9 ---------- Run | Yrd Mat Min Mat Sto Rec Machines Disabled 1 | . . . . 1 . Max in Single Turn 1 | . . . . 1 . Machines Repaired . | . . . . . . Machines Dismantled . | . . . . . . Machines Sabotaged . | . . . . . . Overloaded Fab Kills . | . . . . . . Hacking | -11 -10 -10 -9 -9 -9 --------- Run | Yrd Mat Min Mat Sto Rec Machines Accessed 9 | . 2 1 . 4 2 Terminals 8 | . 2 1 . 3 2 Fabricators . | . . . . . . Repair Stations . | . . . . . . Recycling Units 1 | . . . . 1 . Scanalyzers . | . . . . . . Garrison Access . | . . . . . . Total Hacks 19 | . 4 2 . 8 5 Successful 9 | . 3 1 . 2 3 Failed 10 | . 1 1 . 6 2 Catastrophic 4 | . . 1 . 1 2 Database Lockouts . | . . . . . . Manual 17 | . 4 2 . 6 5 Terminals 16 | . 4 2 . 5 5 Fabricators . | . . . . . . Repair Stations . | . . . . . . Recycling Units 3 | . . . . 3 . Scanalyzers . | . . . . . . Garrison Access . | . . . . . . Terminal Hacks 4 | . 1 . . 1 2 Open Door 1 | . . . . 1 . Branch Access Points 1 | . 1 . . . . Zone Layout 2 | . . . . . 2 Fabricator Hacks . | . . . . . . Repair Station Hacks . | . . . . . . Recycling Unit Hacks 1 | . . . . 1 . Report Inventory 1 | . . . . 1 . Scanalyzer . | . . . . . . Garrison Access Hacks . | . . . . . . Unauthorized Hacks 4 | . 2 1 . . 1 Terminals 4 | . 2 1 . . 1 Botnet 4 | . 2 1 . . 1 Fabricators . | . . . . . . Repair Stations . | . . . . . . Recycling Units . | . . . . . . Scanalyzers . | . . . . . . Garrison Access . | . . . . . . Data Cores Recovered . | . . . . . . Used . | . . . . . . Hacking Detections 7 | . 1 1 . 3 2 Full Trace Events 2 | . . . . . 2 Feedback Events . | . . . . . . Feedback Blocked . | . . . . . . Robot Schematics Acquired . | . . . . . . Robots Built . | . . . . . . Authchips . | . . . . . . Time . | . . . . . . Total Robot Build Rating . | . . . . . . Part Schematics Acquired . | . . . . . . Parts Built . | . . . . . . Authchips . | . . . . . . Time . | . . . . . . Total Part Build Rating . | . . . . . . Parts Repaired . | . . . . . . Time . | . . . . . . Parts Recycled . | . . . . . . Recycled Matter . | . . . . . . Retrieved Matter . | . . . . . . Retrieved Components . | . . . . . . Parts Scanalyzed . | . . . . . . Part Schematics Acquired . | . . . . . . Parts Damaged . | . . . . . . Bothacking | -11 -10 -10 -9 -9 -9 ------------ Run | Yrd Mat Min Mat Sto Rec Used RIF Installer . | . . . . . . Robots Hacked . | . . . . . . Non-combat . | . . . . . . Combat . | . . . . . . Robot Hacks Applied . | . . . . . . Relay Couplers Released . | . . . . . . Fabnet Peak Effective % . | . . . . . . Robots Rewired . | . . . . . . Allies Hacked . | . . . . . . Hacks Repelled . | . . . . . . Allies | -11 -10 -10 -9 -9 -9 -------- Run | Yrd Mat Min Mat Sto Rec Total Allies . | . . . . . . Largest Group . | . . . . . . Highest-Rated Group . | . . . . . . Highest-Rated Ally . | . . . . . . Total Orders . | . . . . . . Ally Attacks . | . . . . . . Total Damage . | . . . . . . Kills . | . . . . . . Allies Corrupted . | . . . . . . Allies Melted . | . . . . . . Intel | -11 -10 -10 -9 -9 -9 ------- Run | Yrd Mat Min Mat Sto Rec Active Infowar (turns) 1269 | 29 213 781 53 193 . Seismic 1269 | 29 213 781 53 193 . Robot Analysis Total . | . . . . . . Derelict Logs Recovered 3 | . . 3 . . . Drone Launches . | . . . . . . Drone Recoveries . | . . . . . . Exploration | -11 -10 -10 -9 -9 -9 ------------- Run | Yrd Mat Min Mat Sto Rec Turns Passed 1942 | 206 213 781 53 424 265 Spaces Moved 1015 | 114 113 437 34 163 154 Core 17 | 14 1 . . 2 . Treads 971 | 100 112 437 34 134 154 Legs . | . . . . . . Wheels 27 | . . . . 27 . Hover . | . . . . . . Flight . | . . . . . . Fastest Speed 50 | 50 160 160 160 105 160 Average Speed 158 | 146 160 160 160 158 160 Slowest Speed 550 | 160 200 160 160 550 160 Overloaded Moves . | . . . . . . Propulsion Burnouts . | . . . . . . Robots Hopped . | . . . . . . Potential Cave-ins . | . . . . . . Cave-ins Triggered . | . . . . . . Exploration Rate (%) 32 | 7 26 85 6 39 34 Regions Visited 5 Branch Regions 3 Pre-discovered Areas 1 | . . 1 . . . Known Exits Taken 2 | . 1 . 1 . . Unknown Exits Taken 3 | 1 . 1 . 1 . Scrap Searched 3 | . . 3 . . . Spaces Dug . | . . . . . . Terrain Destroyed 48 | . . . . 48 . Melee . | . . . . . . Projectile . | . . . . . . AOE 48 | . . . . 48 . Terrain Rammed . | . . . . . . Walls Destroyed . | . . . . . . Machines Disabled . | . . . . . . Actions | -11 -10 -10 -9 -9 -9 --------- Run | Yrd Mat Min Mat Sto Rec Total 1220 | 139 130 494 33 260 164 Wait 60 | . . 39 . 19 2 Move 1010 | 113 112 436 33 162 154 Hop . | . . . . . . Pick Up 33 | 11 5 2 . 12 3 Fast Attach 3 | . 3 . . . . Attach 22 | 7 . 2 . 13 . Detach . | . . . . . . Swap 8 | . 1 . . 7 . Drop 6 | . 1 1 . 4 . Fire 78 | 8 8 14 . 43 5 Melee . | . . . . . . Ram . | . . . . . . Kick . | . . . . . . Crush . | . . . . . . Escape Stasis . | . . . . . . Rewire . | . . . . . . Trap . | . . . . . . Miscellaneous . | . . . . . . Route ------- -11/Scrapyard -10/Materials (discovered 2 exits: *Min x2) -10/Mines (discovered 2 exits: [*Mat x2]) -9/Materials (discovered 6 exits: Mat x3 / Min / *Sto x2) -9/Storage -9/Recycling (discovered 1 exit: [*Fac]) History --------- Turn | Location | Event 7 | -11/Scrapyard | Discovered new exit (range 16) 207 | -11/Scrapyard | Entered Materials 215 | -10/Materials | Identified exit to Mines 306 | -10/Materials | Build established: Mutant 420 | -10/Materials | Entered Mines 489 | -10/Mines | Discovered new exit (range 12) 534 | -10/Mines | Learned location of 1 exit from Materials 690 | -10/Mines | Received a Rocket Launcher from a helpful Derelict 730 | -10/Mines | Learned 8 Materials zone layouts 866 | -10/Mines | Learned 2 Materials zone layouts 997 | -10/Mines | Learned location of Storage (-9) 1180 | -10/Mines | Discovered new exit (range 6) 1189 | -10/Mines | Assembled infested the area 1194 | -10/Mines | Assisted by a Guerilla fighting off Assembled 1201 | -10/Mines | Entered Materials 1201 | -9/Materials | Evolved 2 slots: Utility x2 1202 | -9/Materials | Identified exit to Storage 1203 | -9/Materials | Identified exit to Mines 1203 | -9/Materials | Identified exit to Materials 1254 | -9/Materials | Entered Storage 1478 | -9/Storage | Lost 3 parts (1p1n1u) 1580 | -9/Storage | Core integrity fell below 50% 1601 | -9/Storage | Core integrity fell below 20% 1622 | -9/Storage | Lost 5 parts (2n3w) 1673 | -9/Storage | Used back door to open Recycling access 1673 | -9/Storage | Discovered new exit (range 4) 1678 | -9/Storage | Entered Recycling 1821 | -9/Recycling | Discovered new exit (range 5) 1943 | -9/Recycling | Destroyed by Y-45 Defender with Heavy Assault Rifle Last Messages --------------- GOAL=ESCAPE 01712_ Connecting with Terminal... 01712_ Current location identified: Recycling >>Trojan(Botnet) Trojan loaded successfully. Testing... Terminal linked with 0 systems. Awaiting botnet instructions. >>Layout(Zone) Retrieving Zone 1J layout... Downloaded map data. 01766_ System corrupted: Matter fused (-6). 01789_ Acquired VTOL Module. 01821_ EXIT=FOUND 01845_ Acquired 6 matter. 01872_ Connecting with Terminal... >>Layout(Zone) Retrieving Zone 4G layout... Downloaded map data. 01930_ Y-45 Defender springs to life. Map ----- +----------------------------------------------------+ | ?????????????????????????????????????????????????? | | ?????????????????????????????????????????????????? | | ?????????????????????????????????????????????????? | | ?????????????????????????????????????????????????? | | ?????????????????????????????????????????????????? | | ?????????????????????????????????????????????????? | | ?????????????????????????????????????????????????? | | ?????????????????????????????????????????????????? | | ?????????????????????????????????????????????????? | | ?????????????????????????????????????????????????? | | ?????????????????????????? ??????????????????????? | | ?????????????????????????? ??????????????????????? | | ?????????????????????????? ??????????????????????? | | ?????????????????????????? #?????????????????????? | | ?????????????????????????? #?????????????????????? | | ?????????????????????????? #?????????????????????? | | ?????????????????????????? #?????????????????????? | | ?????????????????????????# #?????????????????????? | | ?????????????????????????# #?????????????????????? | | ?????????????????????????# #?????????????????????? | | ????????????????????????## ####?############?????? | | ????????????????????????# #?# #?????? | | ????????????????????????# #?# [ #?????? | | ????????????????????????+ #?# ! #?????? | | ????????????????????????# #?# = ! #?????? | | ????????????????????????#@ #?# ! ! #?????? | | ????????????????????????## ##?# ! #?????? | | ?????????????????????????# #??# #?????? | | ?????????????????????????# Y##?# ![ #?????? | | ?????????????????????????# #?# #?????? | | ?????????????????????????# ##?# ! #?????? | | ?????????????????????????# #??# % #?????? | | ?????????????????????????# #??# [ = #?????? | | ?????????????????????????# #??# ! #?????? | | ?????????????????????????# #??# #?????? | | ?????????????????????# ### ########+######?????? | | ?????????????? #?????????? | | ?????????????? #?????????? | | ?????????????? #?????????? | | ?????????????? ####+######## ]]#### ###???????? | | ???????????? ?????????????# ] #??# T#???????? | | ???????????? #????????????#####??# ""#???????? | | ???????????# #???????????????????# ###???????? | | ???????????# #??????????########## ######????? | | ???????????# #?????????## # # %[#????? | | ???????????# #?????????# # # !!#????? | | ??????????## #?????????## # # #????? | | ?????????? ##?????????# # # =]#????? | | ??????????? ??????????# # #/[% #????? | | ??????????? ###????????# # # #????? | +----------------------------------------------------+ Best States ------------- Heat Dissipation 38 Energy Generation 14 Energy Capacity 280 Matter Stores 300 Matter Capacity 300 Sight Range 16 Terrain Scan Density 10 Utility Shielding 33 Evasion (%) 50 Recoil Reduction 2 Item Schematics ----------------- None Robot Schematics ------------------ None Fabricated ------------ Nothing Repaired ---------- Nothing Alien Tech Used ----------------- None Achievements -------------- None Challenges ------------ None Game ------ Seed ChromaticTerrorSaw Manual? 0 Play Time 00:15:37 Cumulative 67.5 hours Start 2025.07.28 @ 16:33:15 End 2025.07.28 @ 16:54:58 Sessions 1 Manual Loads 0 Difficulty Rogue Special Mode None Game No. 147 Rogue 147 Adventurer 0 Explorer 0 Win Type - Total 1 Types 1/0/0/0/0/0/0/0/0/0 Lore% 49 Gallery% 49 Achievement% 36 Wizard Run 0 Options --------- Layout 1 ASCII 0 Keyboard 0 Movement Mouse Keybinds 0 Fullscreen 1 Font 24/Smallcaps Map View 50x40 Zoom Use 0% Tactical HUD 1 Map Filters NONE Filters NONE Steam 1 RUN: 30aba89e-fa06-4ae4-a32a-ac3113e801cc